bitfinex-derivatives/quotes_BTCF0:USTF0_20240814
["timestamp","ask_amount","ask_price","bid_price","bid_amount"]
[1723643044786,0.00116869,60257.0,60256.0,0.08312118]
[1723643045488,0.00016869,60257.0,60256.0,0.08312118]
[1723643045689,0.00516869,60257.0,60256.0,0.08312118]
[1723643045991,0.00024877,60263.0,60260.0,0.08294]
[1723643046208,0.00024877,60263.0,60256.0,0.00017518]
[1723643046383,0.082945,60257.0,60256.0,0.00017518]
[1723643046892,0.08301284,60257.0,60256.0,0.00017518]
[1723643047490,0.08301284,60257.0,60256.0,0.00217518]
[1723643048093,0.66383784,60257.0,60256.0,0.00017518]
[1723643048391,0.08301284,60257.0,60256.0,0.00017518]
[1723643048687,6.784e-05,60257.0,60256.0,0.00017518]
[1723643049191,1.27674784,60257.0,60225.0,0.3608]
[1723643049389,0.082987,60227.0,60225.0,0.3608]
[1723643049578,0.082979,60233.0,60225.0,0.3608]
[1723643049779,0.082967,60241.0,60232.0,0.3608]
[1723643049988,0.36184001,60247.0,60238.0,0.3608]
[1723643050186,0.36184001,60247.0,60232.0,0.3608]
[1723643050187,0.00016323,60246.0,60232.0,0.3608]
[1723643050389,0.00016323,60246.0,60245.0,0.082961]
[1723643050691,1e-08,60246.0,60245.0,0.443761]
[1723643051689,0.28614898,60263.0,60245.0,0.7618]
[1723643051889,0.082914,60280.0,60270.0,0.082926]
[1723643052190,0.3608,60278.0,60267.0,0.3608]
[1723643052394,0.08293,60268.0,60267.0,0.3608]
[1723643052689,0.082934,60265.0,60254.0,0.082948]
[1723643052891,0.3608,60262.0,60254.0,0.082948]
[1723643053095,0.3619998,60268.0,60252.0,0.3608]
[1723643053096,7.979e-05,60268.0,60261.0,0.36104898]
[1723643053295,7.979e-05,60268.0,60266.0,0.443732]
[1723643054192,0.3608,60267.0,60261.0,0.00024898]
[1723643054586,0.443731,60267.0,60261.0,0.00024898]
[1723643054784,0.082937,60263.0,60261.0,0.00024898]
[1723643054984,0.3608,60262.0,60261.0,0.00024898]
[1723643055290,0.85864,60262.0,60243.0,0.3608]
[1723643055482,0.3608,60254.0,60234.0,0.3608]
[1723643055685,0.3608,60242.0,60226.0,0.3608]
[1723643055888,0.082974,60236.0,60231.0,0.3608]
[1723643056188,0.082986,60227.0,60212.0,0.3608]
[1723643056389,0.8626,60232.0,60215.0,0.083003]
[1723643056390,0.3608,60222.0,60215.0,0.083003]
[1723643056590,7.979e-05,60226.0,60212.0,0.3608]
[1723643056790,0.082992,60223.0,60212.0,0.3608]
[1723643056990,0.083003,60215.0,60206.0,0.3608]
[1723643057297,0.083012,60208.0,60196.0,0.3608]
[1723643057497,0.3608,60206.0,60204.0,0.083018]
[1723643057689,0.3608,60206.0,60195.0,0.3608]
[1723643057993,7.979e-05,60215.0,60214.0,0.083004]
[1723643058198,0.3608,60237.0,60214.0,0.9108]
[1723643058391,0.3608,60237.0,60228.0,0.3608]
[1723643058586,0.3608,60237.0,60235.0,0.082975]
[1723643058997,0.3608,60244.0,60243.0,0.082964]
[1723643059301,0.36095247,60244.0,60243.0,0.082964]
[1723643059501,0.00015247,60244.0,60243.0,0.082964]
[1723643060292,0.00015247,60244.0,60241.0,0.3608]
[1723643060892,0.00015247,60244.0,60236.0,0.091]
[1723643061220,0.001,60237.0,60235.0,0.007]
[1723643061396,0.083973,60237.0,60235.0,0.007]
[1723643061590,0.001,60237.0,60232.0,0.3608]
[1723643061787,0.00015247,60244.0,60233.0,0.3608]
[1723643061992,0.00015247,60244.0,60238.0,0.3608]
[1723643062192,0.00015247,60244.0,60233.0,0.3608]
[1723643062398,0.00115247,60244.0,60233.0,0.3608]
[1723643062696,0.00115247,60244.0,60237.0,0.082972]
[1723643062897,0.00115247,60244.0,60238.0,0.3608]
[1723643063101,0.00115247,60244.0,60213.0,0.06567472]
[1723643063102,0.082988,60226.0,60213.0,0.06567472]
[1723643063293,0.3608,60223.0,60213.0,0.3608]
[1723643063789,0.3608,60223.0,60207.0,0.3608]
[1723643063790,0.443793,60223.0,60207.0,0.083013]
[1723643063990,0.443793,60223.0,60211.0,0.083007]
[1723643064194,0.443793,60223.0,60205.0,0.4099]
[1723643064400,0.443793,60223.0,60205.0,0.3608]
[1723643064401,0.49816,60222.0,60205.0,0.3608]
[1723643064599,0.3608,60211.0,60205.0,0.3608]
[1723643064997,0.3608,60211.0,60209.0,0.08301]
[1723643065198,0.3608,60211.0,60200.0,0.15]
[1723643065396,0.00013918,60210.0,60200.0,0.15]
[1723643066090,0.7216,60201.0,60200.0,0.15]
[1723643066291,0.083021,60202.0,60200.0,0.15]
[1723643066501,0.443821,60202.0,60200.0,0.15]
[1723643066704,0.3608,60202.0,60188.0,0.083039]
[1723643066901,0.3608,60202.0,60186.0,0.3608]
[1723643066902,0.3608,60195.0,60186.0,0.3608]
[1723643067102,0.00020529,60194.0,60186.0,0.3608]
[1723643067302,0.3608,60187.0,60179.0,0.3608]
[1723643067501,0.3608,60187.0,60169.0,0.3608]
[1723643067704,0.3608,60187.0,60164.0,0.0455]
[1723643067705,0.3608,60187.0,60174.0,0.3608]
[1723643067898,0.3608,60187.0,60182.0,0.083048]
[1723643068299,0.083044,60185.0,60174.0,0.3608]
[1723643068608,0.3608,60187.0,60174.0,0.3608]
[1723643069106,0.0002492,60191.0,60189.0,0.083038]
[1723643069607,0.0002492,60191.0,60182.0,0.083048]
[1723643069899,0.0002492,60191.0,60187.0,0.3608]
[1723643070097,0.0002492,60191.0,60189.0,0.083037]
[1723643070296,0.3608,60209.0,60190.0,0.49844]
[1723643070493,0.3608,60209.0,60197.0,0.3608]
[1723643070694,0.3608,60209.0,60190.0,0.00084]
[1723643070695,0.3608,60202.0,60190.0,0.00084]
[1723643070897,0.3608,60195.0,60185.0,0.3608]
[1723643071095,0.3608,60195.0,60173.0,0.0455]
[1723643071096,0.3608,60190.0,60180.0,0.3608]
[1723643071300,0.00019478,60189.0,60180.0,0.3608]
[1723643071505,0.00019478,60189.0,60183.0,0.083046]
[1723643071709,0.001,60187.0,60185.0,0.083043]
[1723643072204,0.001,60187.0,60179.0,0.0002492]
[1723643072402,0.001,60187.0,60180.0,0.08305]
[1723643072604,0.001,60187.0,60179.0,0.0002492]
[1723643072903,0.3608,60182.0,60179.0,0.0002492]
[1723643073108,0.083051,60181.0,60179.0,0.0002492]
[1723643073810,0.3608,60182.0,60179.0,0.0002492]
[1723643074103,0.001,60187.0,60179.0,0.0002492]
[1723643074510,0.001,60187.0,60145.0,0.113976]
[1723643074814,0.001,60187.0,60113.0,0.12860208]
[1723643074815,0.3608,60164.0,60113.0,0.12860208]
[1723643075019,0.3608,60164.0,60069.0,0.22856726]
[1723643075020,1.306542,60114.0,60079.0,0.06557087]
[1723643075307,0.5018,60103.0,60091.0,0.3608]
[1723643075614,0.5018,60103.0,60076.0,0.06557087]
[1723643075615,0.8626,60092.0,60067.0,0.19526005]
[1723643075811,0.3608,60072.0,60069.0,0.0489]
[1723643076017,0.3608,60084.0,60069.0,0.1889]
[1723643076306,0.3608,60099.0,60078.0,0.3608]
[1723643076513,0.3608,60126.0,60101.0,0.083159]
[1723643076701,0.3608,60138.0,60121.0,0.3608]
[1723643076908,0.3608,60143.0,60133.0,0.3608]
[1723643077107,0.3608,60136.0,60123.0,0.3608]
[1723643077310,0.0002135,60135.0,60131.0,0.083119]
[1723643077510,0.3608,60133.0,60123.0,0.3608]
[1723643078009,0.3608,60133.0,60109.0,0.3608]
[1723643078212,0.5018,60128.0,60127.0,1e-08]
[1723643078416,1.22353634,60128.0,60127.0,1e-08]
[1723643078608,2.12245634,60128.0,60106.0,0.33292046]
[1723643078803,0.3608,60126.0,60116.0,0.3608]
[1723643079112,0.3608,60126.0,60109.0,0.3608]
[1723643079311,0.50193634,60128.0,60109.0,0.3608]
[1723643079511,0.01413634,60128.0,60119.0,0.083134]
[1723643079720,0.01413634,60128.0,60126.0,0.083125]
[1723643080008,0.01413634,60128.0,60126.0,0.582085]
[1723643080209,0.3608,60138.0,60127.0,0.49896]
[1723643080424,0.3608,60138.0,60137.0,0.08311]
[1723643080602,0.3608,60147.0,60146.0,0.083098]
[1723643081012,0.3608,60147.0,60136.0,0.08311]
[1723643081204,0.3608,60138.0,60137.0,0.08311]
[1723643081607,1e-08,60139.0,60138.0,0.49884]
[1723643081809,1e-08,60139.0,60138.0,0.85964]
[1723643082010,1e-08,60139.0,60138.0,1.25964]
[1723643083216,0.00100001,60139.0,60138.0,0.3608]
[1723643083514,0.00100001,60139.0,60138.0,1.342749]
[1723643083727,0.00019434,60146.0,60145.0,0.083099]
[1723643083913,0.3608,60146.0,60136.0,0.083111]
[1723643084115,0.3608,60146.0,60132.0,0.00024941]
[1723643084310,0.3608,60146.0,60141.0,0.083105]
[1723643084509,0.3608,60150.0,60136.0,0.3608]
[1723643084715,0.3608,60155.0,60136.0,0.3608]
[1723643085013,4.49e-05,60149.0,60136.0,0.3608]
[1723643085210,4.49e-05,60149.0,60147.0,0.083096]
[1723643085407,4.49e-05,60149.0,60148.0,0.3608]
[1723643085611,4.49e-05,60149.0,60148.0,0.85956]
[1723643085807,4.49e-05,60149.0,60148.0,1.25956]
[1723643086016,4.49e-05,60149.0,60147.0,0.083096]
[1723643086222,0.3608,60148.0,60147.0,0.083096]
[1723643086419,4.49e-05,60149.0,60148.0,0.49876]
[1723643086622,0.3608,60174.0,60148.0,0.85956]
[1723643086822,0.3608,60174.0,60167.0,0.083068]
[1723643087119,0.3608,60174.0,60154.0,0.59356]
[1723643087315,0.3608,60180.0,60169.0,0.083065]
[1723643087821,0.31575,60224.0,60169.0,0.083065]
[1723643087822,0.3608,60185.0,60170.0,0.8594]
[1723643088120,0.3608,60185.0,60165.0,0.3608]
[1723643088319,0.3608,60185.0,60165.0,0.5108]
[1723643088513,0.3608,60185.0,60183.0,0.083046]
[1723643088909,0.3608,60185.0,60165.0,0.7608]
[1723643088910,0.3608,60191.0,60165.0,0.3608]
[1723643089117,0.3608,60185.0,60184.0,0.083045]
[1723643089314,0.00024918,60181.0,60168.0,0.3608]
[1723643089509,0.00024918,60181.0,60168.0,0.5308]
[1723643089710,0.001,60185.0,60184.0,0.083045]
[1723643089910,0.3608,60197.0,60184.0,0.49848]
[1723643090112,0.3608,60197.0,60184.0,1.40928]
[1723643090321,0.3608,60205.0,60194.0,0.3608]
[1723643090509,0.3608,60211.0,60204.0,0.083017]
[1723643090715,0.3608,60206.0,60194.0,0.3608]
[1723643090910,0.443829,60196.0,60192.0,0.23272]
[1723643091246,0.3608,60194.0,60193.0,0.083033]
[1723643091523,0.083009,60211.0,60193.0,0.49836]
[1723643091524,0.3608,60211.0,60193.0,0.49836]
[1723643091723,0.00024918,60214.0,60193.0,0.3608]
[1723643091909,0.00024918,60214.0,60200.0,0.3608]
[1723643092116,0.3608,60209.0,60200.0,0.3608]
[1723643092321,0.3608,60209.0,60203.0,0.083019]
[1723643092619,0.3608,60209.0,60193.0,0.3608]
[1723643093120,0.3608,60205.0,60200.0,0.00024918]
[1723643093421,0.083021,60201.0,60200.0,0.00024918]
[1723643093723,0.083021,60201.0,60184.0,0.005]
[1723643093724,0.083032,60193.0,60185.0,0.047]
[1723643093916,0.3608,60186.0,60185.0,0.130043]
[1723643094114,0.3608,60191.0,60185.0,0.047]
[1723643094316,0.443835,60191.0,60185.0,0.047]
[1723643094520,0.3608,60178.0,60157.0,0.06506499]
[1723643094726,0.3608,60158.0,60141.0,0.0467]
[1723643094917,0.3608,60151.0,60141.0,0.0467]
[1723643095920,0.3608,60151.0,60144.0,0.00024918]
[1723643096219,0.3608,60151.0,60149.0,0.083092]
[1723643096422,0.3608,60151.0,60144.0,0.08334918]
[1723643096619,0.3608,60151.0,60144.0,0.00024918]
[1723643097222,0.3648,60151.0,60144.0,0.00024918]
[1723643097916,0.3648,60151.0,60147.0,0.083095]
[1723643098118,0.004,60151.0,60149.0,0.083092]
[1723643098421,0.00024918,60157.0,60150.0,0.49896203]
[1723643098621,0.3608,60154.0,60150.0,0.00020203]
[1723643098822,0.006,60151.0,60150.0,0.00120203]
[1723643099213,0.006,60151.0,60150.0,0.89996203]
[1723643099619,0.00024918,60157.0,60156.0,0.083083]
[1723643100025,0.3608,60166.0,60165.0,0.083071]
[1723643100235,0.3608,60182.0,60165.0,0.85944]
[1723643100522,0.3608,60174.0,60166.0,0.0466]
[1723643100726,0.3608,60174.0,60172.0,0.083061]
[1723643100923,0.3608,60174.0,60166.0,0.0466]
[1723643101123,0.3608,60174.0,60170.0,0.083064]
[1723643101433,0.3608,60182.0,60180.0,0.083049]
[1723643102023,0.3608,60187.0,60181.0,0.49848]
[1723643102218,0.3608,60196.0,60184.0,0.3608]
[1723643102424,0.3608,60196.0,60185.0,0.083043]
[1723643102819,0.00024918,60187.0,60184.0,0.3608]
[1723643103326,1.8e-07,60187.0,60185.0,0.664526]
[1723643103524,1.8e-07,60187.0,60185.0,0.581483]
[1723643103728,1.8e-07,60187.0,60186.0,0.49844]
[1723643103915,1.8e-07,60187.0,60186.0,0.64844]
[1723643104228,1.8e-07,60187.0,60185.0,0.084003]
[1723643104431,1.8e-07,60187.0,60185.0,0.581483]
[1723643104619,1.8e-07,60187.0,60185.0,0.083043]
[1723643104819,1.8e-07,60187.0,60181.0,0.3608]
[1723643104820,1.8e-07,60187.0,60181.0,0.083048]
[1723643105122,1.8e-07,60187.0,60185.0,0.083043]
[1723643105318,1.8e-07,60187.0,60186.0,0.85924]
[1723643105519,0.3608,60213.0,60187.0,0.08304]
[1723643105717,0.3608,60213.0,60200.0,0.3608]
[1723643105920,0.3608,60213.0,60202.0,0.083019]
[1723643106115,0.3608,60213.0,60194.0,0.3608]
[1723643106116,0.3608,60213.0,60206.0,0.083014]
[1723643106320,0.3608,60213.0,60208.0,0.083011]
[1723643106530,0.3608,60213.0,60200.0,0.083022]
[1723643106729,0.3608,60213.0,60195.0,0.0453]
[1723643106730,0.3608,60206.0,60195.0,0.0453]
[1723643107030,0.3608,60206.0,60204.0,0.08326518]
[1723643107526,0.00024918,60217.0,60214.0,0.083003]
[1723643107731,0.00024918,60217.0,60210.0,0.3608]
[1723643108432,0.00024918,60217.0,60215.0,0.443802]
[1723643108622,0.00024918,60217.0,60216.0,0.4982]
[1723643109128,0.00024918,60217.0,60216.0,0.8982]
[1723643109325,0.3608,60232.0,60216.0,1.0582]
[1723643109529,0.3608,60232.0,60230.0,0.082981]
[1723643110029,0.3608,60232.0,60209.0,0.13185072]
[1723643110030,0.3608,60242.0,60227.0,0.0469]
[1723643110231,0.3608,60230.0,60217.0,0.3608]
[1723643110434,0.082984,60228.0,60217.0,0.3608]
[1723643110732,0.3608,60224.0,60216.0,0.001]
[1723643110921,0.443799,60217.0,60216.0,0.001]
[1723643111324,0.941999,60217.0,60216.0,0.001]
[1723643111522,0.3608,60217.0,60204.0,0.3608]
[1723643111821,0.3608,60217.0,60216.0,0.083001]
[1723643112423,0.3608,60229.0,60225.0,0.082988]
[1723643112629,0.3608,60229.0,60228.0,0.082984]
[1723643112829,0.3608,60229.0,60216.0,0.3608]
[1723643113227,0.3608,60229.0,60228.0,0.082984]
[1723643113422,0.003,60232.0,60231.0,0.08298]
[1723643113936,0.004,60224.0,60216.0,0.3608]
[1723643114234,0.004,60224.0,60223.0,0.443791]
[1723643114426,0.004,60224.0,60223.0,0.242991]
[1723643114728,0.004,60224.0,60223.0,0.131091]
[1723643114923,0.004,60224.0,60223.0,1.272242]
[1723643115128,0.009,60229.0,60228.0,0.082984]
[1723643115333,0.00024918,60235.0,60234.0,0.082976]
[1723643115927,0.00024918,60235.0,60234.0,0.581016]
[1723643116132,0.00024918,60235.0,60234.0,1.151016]
[1723643116339,0.00024918,60235.0,60234.0,1.111816]
[1723643116836,0.00024918,60235.0,60234.0,1.511816]
[1723643117134,0.3608,60248.0,60234.0,1.42884]
[1723643117338,0.3608,60255.0,60240.0,0.3608]
[1723643117544,0.3608,60255.0,60234.0,0.00092]
[1723643117545,0.3608,60248.0,60234.0,0.00092]
[1723643117726,0.3608,60248.0,60234.0,0.15]
[1723643117923,0.3608,60248.0,60234.0,0.15465152]
[1723643118123,0.3608,60249.0,60239.0,0.3608]
[1723643118631,0.082959,60246.0,60238.0,0.08297]
[1723643118835,0.082962,60245.0,60238.0,0.08297]
[1723643119029,0.00015423,60247.0,60244.0,0.082961]
[1723643119332,0.00015423,60247.0,60235.0,0.00024897]
[1723643119537,0.00015423,60247.0,60237.0,0.3608]
[1723643120331,0.00015423,60247.0,60237.0,0.082971]
[1723643120332,0.3608,60240.0,60237.0,0.082971]
[1723643120533,0.3608,60240.0,60235.0,0.00024897]
[1723643120729,0.3608,60244.0,60235.0,0.00024897]
[1723643120934,0.3608,60244.0,60240.0,0.082967]
[1723643121135,0.3608,60244.0,60235.0,0.00124897]
[1723643121436,0.00815423,60247.0,60246.0,0.082959]
[1723643121437,0.01615423,60247.0,60246.0,0.082959]
[1723643121636,0.01615423,60247.0,60241.0,0.082965]
[1723643121839,0.01615423,60247.0,60237.0,0.001]
[1723643122135,0.082992,60222.0,60218.0,0.0535]
[1723643122332,0.3608,60223.0,60218.0,0.0535]
[1723643123229,0.3608,60223.0,60222.0,0.082992]
[1723643123549,0.3608,60223.0,60212.0,0.083005]
[1723643123724,0.3608,60223.0,60212.0,0.16]
[1723643123925,0.3608,60223.0,60214.0,0.083003]
[1723643124126,0.3608,60217.0,60214.0,0.00024897]
[1723643124325,0.083002,60215.0,60214.0,0.00024897]
[1723643124528,0.083002,60215.0,60200.0,0.5]
[1723643124529,0.3608,60215.0,60200.0,0.5]
[1723643124728,0.443821,60201.0,60200.0,0.5]
[1723643125125,0.443821,60201.0,60200.0,0.583023]
[1723643125126,0.3608,60201.0,60200.0,0.583023]
[1723643125334,0.3608,60212.0,60200.0,0.583023]
[1723643125631,0.3608,60212.0,60211.0,0.083007]
[1723643125832,0.3608,60219.0,60218.0,0.082998]
[1723643126138,0.3608,60224.0,60223.0,0.082991]
[1723643127534,0.00024897,60230.0,60229.0,0.082983]
[1723643127835,0.082952,60251.0,60230.0,0.08298]
[1723643128038,0.3608,60241.0,60234.0,0.3608]
[1723643128534,0.3608,60236.0,60232.0,0.082978]
[1723643128749,0.3608,60234.0,60220.0,0.3608]
[1723643129040,0.3608,60226.0,60225.0,0.082988]
[1723643129245,0.3608,60226.0,60223.0,0.08299]
[1723643129434,0.3608,60226.0,60224.0,0.082988]
[1723643129625,0.3608,60226.0,60225.0,0.082988]
[1723643129835,0.082992,60222.0,60219.0,0.00024897]
[1723643130139,0.3608,60226.0,60225.0,0.082988]
[1723643131030,0.3608,60233.0,60232.0,0.082979]
[1723643131227,0.3608,60233.0,60219.0,0.00024897]
[1723643131434,0.3608,60225.0,60223.0,0.082991]
[1723643131631,0.3608,60225.0,60219.0,0.00024897]
[1723643131632,0.3608,60225.0,60224.0,0.08299]
[1723643132341,0.00024897,60232.0,60231.0,0.08298]
[1723643132550,0.36104897,60232.0,60215.0,0.3608]
[1723643132839,0.36104897,60232.0,60209.0,0.48175371]
[1723643132840,0.3608,60225.0,60209.0,0.48175371]
[1723643133045,0.3608,60225.0,60220.0,0.082995]
[1723643133437,0.3608,60225.0,60215.0,0.083002]
[1723643133743,0.3608,60225.0,60209.0,0.48175371]
[1723643133941,0.3608,60225.0,60223.0,0.082991]
[1723643134437,0.36104897,60232.0,60226.0,0.082986]
[1723643134647,0.36104897,60232.0,60217.0,0.3608]
[1723643134840,0.3608,60227.0,60226.0,0.082987]
[1723643135040,0.36104897,60232.0,60219.0,0.00024897]
[1723643135242,0.36104897,60232.0,60231.0,0.08298]
[1723643135835,0.00024897,60232.0,60223.0,0.0516]
[1723643136043,0.082986,60227.0,60219.0,0.36104897]
[1723643136237,0.3608,60230.0,60219.0,0.52104897]
[1723643136448,0.00024897,60232.0,60231.0,0.08298]
[1723643136936,0.35914897,60238.0,60226.0,0.3608]
[1723643137137,0.35914897,60238.0,60226.0,0.5208]
[1723643137331,0.35914897,60238.0,60226.0,0.16]
[1723643137635,0.35914897,60238.0,60236.0,0.082973]
[1723643137842,0.35914897,60238.0,60225.0,0.04931528]
[1723643138039,0.3608,60232.0,60231.0,0.001]
[1723643138340,0.00015423,60243.0,60231.0,0.001]
[1723643138547,0.00015423,60243.0,60242.0,0.082965]
[1723643138732,0.00015423,60243.0,60236.0,0.082973]
[1723643138733,0.082965,60242.0,60236.0,0.082973]
[1723643138938,0.00015423,60243.0,60236.0,0.00024897]
[1723643139138,0.00015423,60243.0,60236.0,0.16024897]
[1723643139336,0.00015423,60243.0,60242.0,0.082965]
[1723643139533,0.36095423,60243.0,60237.0,0.082971]
[1723643139741,0.36095423,60243.0,60242.0,0.082965]
[1723643140141,0.00015423,60243.0,60242.0,0.082965]
[1723643140531,0.36095423,60243.0,60236.0,0.00024897]
[1723643140736,0.00015423,60243.0,60236.0,0.16024897]
[1723643141040,0.00015423,60243.0,60242.0,0.082965]
[1723643141640,0.36095423,60243.0,60242.0,0.082965]
[1723643142348,0.00015423,60243.0,60242.0,0.082965]
[1723643142548,0.00015423,60243.0,60242.0,0.083965]
[1723643142744,0.00015423,60243.0,60242.0,0.28347279]
[1723643143648,0.00015423,60243.0,60242.0,0.233965]
[1723643143849,0.00015423,60243.0,60242.0,0.28347279]
[1723643144249,0.00015423,60243.0,60242.0,0.78147279]
[1723643144442,0.00015423,60243.0,60242.0,0.28347279]
[1723643144745,0.00015423,60243.0,60242.0,1.131965]
[1723643145649,0.00015423,60243.0,60242.0,1.492765]
[1723643145952,1e-08,60243.0,60242.0,1.492765]
[1723643146457,1e-08,60243.0,60242.0,1.092765]
[1723643146845,1e-08,60243.0,60242.0,1.492765]
[1723643147245,0.36537931,60264.0,60251.0,0.082952]
[1723643147451,0.082937,60262.0,60253.0,0.3608]
[1723643147747,0.082937,60262.0,60253.0,0.5108]
[1723643148151,0.3608,60264.0,60253.0,0.3608]
[1723643148352,0.3608,60254.0,60248.0,0.04944953]
[1723643148544,0.3608,60254.0,60247.0,0.04944953]
[1723643148747,0.3608,60254.0,60247.0,0.21944953]
[1723643149148,0.443735,60264.0,60252.0,0.36104897]
[1723643149349,0.443735,60264.0,60252.0,0.51104897]
[1723643149549,0.082935,60264.0,60260.0,0.3608]
[1723643150455,0.082932,60266.0,60260.0,0.3608]
[1723643150749,0.3608,60268.0,60260.0,0.3608]
[1723643151151,0.082932,60266.0,60260.0,0.3608]
[1723643151344,0.0046981,60269.0,60260.0,0.5108]
[1723643151545,0.3608,60277.0,60267.0,0.3608]
[1723643151746,0.3608,60269.0,60260.0,0.36164]
[1723643151943,0.3608,60269.0,60260.0,0.3608]
[1723643152155,0.3608,60269.0,60260.0,0.594739]
[1723643152359,0.3608,60269.0,60261.0,0.082938]
[1723643152550,0.3608,60269.0,60260.0,0.36264]
[1723643152752,0.3608,60272.0,60266.0,0.3608]
[1723643153058,0.082929,60268.0,60260.0,0.36264]
[1723643153251,0.3608,60272.0,60266.0,0.3608]
[1723643153751,0.082932,60267.0,60260.0,0.36644895]
[1723643153952,0.3608,60272.0,60260.0,0.36644895]
[1723643154147,0.443724,60272.0,60264.0,0.082934]
[1723643154347,0.3608,60272.0,60260.0,0.36644895]
[1723643154551,0.082927,60270.0,60266.0,0.3608]
[1723643155853,0.89776,60270.0,60260.0,0.00564895]
[1723643156050,0.082928,60269.0,60260.0,0.36544895]
[1723643156249,0.3654206,60272.0,60260.0,0.36544895]
[1723643156250,0.3654206,60272.0,60260.0,0.53544895]
[1723643156555,0.3654206,60272.0,60266.0,0.082932]
[1723643156859,0.4483446,60272.0,60266.0,0.083932]
[1723643157755,0.082939,60261.0,60246.0,0.06593271]
[1723643157956,0.082939,60261.0,60240.0,0.082968]
[1723643157957,0.08296,60246.0,60240.0,0.082968]
[1723643158255,0.72288,60250.0,60249.0,0.082955]
[1723643158463,0.7216,60250.0,60249.0,0.082955]
[1723643158853,1.61952,60250.0,60249.0,0.082955]
[1723643159156,0.7216,60250.0,60249.0,0.082955]
[1723643160153,0.7216,60250.0,60249.0,0.083955]
[1723643160351,0.00024897,60256.0,60249.0,0.85972]
[1723643160561,0.00024897,60256.0,60251.0,0.3608]
[1723643160858,0.00024897,60256.0,60255.0,0.082947]
[1723643161562,0.00024897,60256.0,60255.0,0.252947]
[1723643162356,0.00024897,60256.0,60255.0,0.082947]
[1723643162657,0.00024897,60256.0,60255.0,0.252947]
[1723643163549,0.00024897,60256.0,60255.0,0.082947]
[1723643164357,0.00024897,60256.0,60255.0,0.13239653]
[1723643164658,0.00024897,60256.0,60255.0,0.242947]
[1723643165053,0.00024897,60256.0,60255.0,0.082947]
[1723643165758,0.00024897,60256.0,60255.0,0.232947]
[1723643171256,0.00024897,60256.0,60255.0,0.44148324]
[1723643171666,0.00456608,60264.0,60255.0,0.44148324]
[1723643171667,0.00456608,60264.0,60263.0,0.082936]
[1723643171872,0.3608,60289.0,60273.0,0.082922]
[1723643172069,0.36220001,60300.0,60288.0,0.7911]
[1723643172257,0.3608,60300.0,60299.0,0.082886]
[1723643172570,0.0312,60320.0,60318.0,0.08286]
[1723643172755,0.0312,60320.0,60308.0,0.3608]
[1723643172951,0.0312,60320.0,60309.0,0.082872]
[1723643173155,0.0312,60320.0,60311.0,0.04947529]
[1723643173352,0.3608,60327.0,60318.0,0.3608]
[1723643173564,0.0312,60333.0,60331.0,0.082842]
[1723643173863,0.07205031,60348.0,60323.0,0.3608]
[1723643173864,0.3608,60341.0,60334.0,0.082838]
[1723643174058,0.36593024,60341.0,60330.0,0.3608]
[1723643174258,0.00513024,60341.0,60336.0,0.3608]
[1723643174462,0.00128,60343.0,60336.0,0.3608]
[1723643174666,0.3608,60347.0,60338.0,0.082833]
[1723643174861,0.3608,60339.0,60331.0,0.00024876]
[1723643175163,0.7911,60332.0,60316.0,0.00514319]
[1723643175362,0.3608,60320.0,60310.0,0.3608]
[1723643175559,0.3608,60320.0,60318.0,0.08286]
[1723643175765,0.3608,60326.0,60310.0,0.36923611]
[1723643176063,0.3608,60339.0,60325.0,0.3608]
[1723643176264,0.3608,60339.0,60337.0,0.082834]
[1723643176456,0.3608,60339.0,60334.0,0.082837]
[1723643176657,0.3608,60339.0,60325.0,0.00516173]
[1723643176862,0.3608,60331.0,60325.0,0.08285]
[1723643177065,0.165716,60320.0,60318.0,0.001]
[1723643177264,0.3608,60319.0,60296.0,0.3608]
[1723643177459,0.3608,60306.0,60289.0,0.3608]
[1723643177654,0.3608,60306.0,60284.0,0.00013305]
[1723643177655,0.3608,60300.0,60291.0,0.00512501]
[1723643177855,0.3608,60306.0,60297.0,0.082888]
[1723643178060,0.36104804,60306.0,60294.0,0.00024876]
[1723643178261,0.00024804,60306.0,60296.0,0.3608]
[1723643178463,0.36104804,60306.0,60296.0,0.3608]
[1723643178660,0.3608,60297.0,60294.0,0.00024876]
[1723643179462,0.3608,60297.0,60294.0,0.08314176]
[1723643179665,0.082879,60305.0,60298.0,0.082887]
[1723643179968,0.36104804,60306.0,60294.0,0.36104876]
[1723643180164,0.3608,60304.0,60294.0,0.36104876]
[1723643180570,0.3608,60304.0,60294.0,0.44394176]
[1723643180861,0.3608,60296.0,60294.0,0.08314176]
[1723643181062,0.00024804,60306.0,60304.0,0.082879]
[1723643181280,0.36704804,60306.0,60295.0,0.3608]
[1723643182165,0.00624804,60306.0,60300.0,0.3608]
[1723643182671,0.00024804,60306.0,60305.0,0.082878]
[1723643182964,0.00024804,60306.0,60296.0,0.08289]
[1723643183264,0.3608,60302.0,60294.0,0.00124876]
[1723643183660,0.3608,60302.0,60294.0,0.08414176]
[1723643183661,0.3608,60295.0,60294.0,0.08414176]
[1723643183962,0.3608,60302.0,60301.0,0.082884]
[1723643184867,0.00024804,60306.0,60305.0,0.082878]
[1723643185060,0.3608,60326.0,60305.0,0.53904241]
[1723643185261,0.3608,60331.0,60325.0,0.082851]
[1723643185458,0.082849,60327.0,60321.0,0.3608]
[1723643185668,0.082851,60325.0,60319.0,0.082859]
[1723643185857,0.3608,60326.0,60319.0,0.082859]
[1723643186064,0.3608,60326.0,60315.0,0.3608]
[1723643186065,0.082863,60316.0,60315.0,0.3608]
[1723643186370,0.7216,60316.0,60298.0,0.00526494]
[1723643186560,0.082892,60295.0,60291.0,0.3608]
[1723643186963,0.082892,60295.0,60284.0,0.00013305]
[1723643186964,0.082906,60285.0,60284.0,0.00013305]